Cogmind - Beta 12 @@@ ROGUE MODE // 2023.04.06 @ 15:38:28 Player: deepledi Result: Self-destructed Performance ------------- Evolutions (2) 1000 Regions Visited (6) 1200 Robots Destroyed (44) 220 Value Destroyed (1397) 1397 Prototype IDs (3) 60 Alien Tech Used (0) 0 Bonus (300) 300 TOTAL SCORE: 4177 Bonus ------- Aligned with FarCom 300 Cogmind --------- Core Integrity 351/550 Matter 209/300 Energy 290/290 System Corruption 0% Temperature Cool (0) Movement Treading (165) Location -8/Materials Parts ------- > --- POWER (1) -------- Improved Deuterium Engine > --- PROPULSION (4) --- Light Treads Light Treads Armored Treads Armored Treads > --- UTILITY (4) ------ Medium Storage Unit Trap Scanner Improved Targeting Computer Light Armor Plating > --- WEAPON (2) ------- Minigun > --- INVENTORY (10) --- Improved Deuterium Engine Aerolev Unit Aerolev Unit Aerolev Unit Advanced Heat Sink Advanced Weight Redist. System Cloak of Protection Hacking Suite System Shield Heavy Mace Peak State ------------ > --- POWER ------------ Improved Deuterium Engine > --- PROPULSION ------- Light Treads Light Treads Armored Treads Armored Treads > --- UTILITY ---------- Advanced Heat Sink Improved Cooling System Medium Storage Unit Improved Targeting Computer > --- WEAPON ----------- Heavy Laser Minigun > --- INVENTORY -------- Improved Deuterium Engine Improved Deuterium Engine Aerolev Unit Aerolev Unit Aerolev Unit Improved Cooling System Advanced Weight Redist. System Cloak of Protection Heavy EM Pulse Gun Heavy Mace [Rating: 35] Favorites ----------- Power Ion Engine Engine Ion Engine Power Core Light Nuclear Core Propulsion Light Treads Treads Light Treads Wheel Wheel Hover Unit Hover Unit Utility Signal Interpreter Device Improved Cooling System Storage Large Storage Unit Processor Signal Interpreter Protection Light Armor Plating Weapon Medium Laser Energy Gun Medium Laser Energy Cannon Beam Cannon Ballistic Gun Minigun Launcher Mini Grenade Launcher Build | -11 -10 -9 -9 -9 -8 -8 ------- Run | Jun Mat Mat Min Exi Min Mat Slots Evolved 4 | . . 2 . . . 2 Power . | . . . . . . . Propulsion 2 | . . 1 . . . 1 Utility 2 | . . 1 . . . 1 Weapon . | . . . . . . . Parts Attached 69 | 7 3 7 10 2 3 37 Power 7 | 1 . 1 2 . 1 2 Engine 6 | 1 . 1 2 . . 2 Core 1 | . . . . . 1 . Reactor . | . . . . . . . Propulsion 22 | 2 1 2 4 . . 13 Treads 17 | 1 1 2 2 . . 11 Leg . | . . . . . . . Wheel 1 | 1 . . . . . . Hover 4 | . . . 2 . . 2 Flight . | . . . . . . . Utility 19 | 1 1 2 1 1 1 12 Device 9 | . . 2 . 1 . 6 Storage 5 | 1 1 . . . 1 2 Processor 2 | . . . 1 . . 1 Hackware . | . . . . . . . Protection 3 | . . . . . . 3 Artifact . | . . . . . . . Weapon 21 | 3 1 2 3 1 1 10 Energy Gun 11 | 2 . . 2 . . 7 Energy Cannon 3 | . 1 . . 1 . 1 Ballistic Gun 6 | 1 . 2 1 . . 2 Ballistic Cannon . | . . . . . . . Launcher 1 | . . . . . 1 . Special Weapon . | . . . . . . . Impact Weapon . | . . . . . . . Slashing Weapon . | . . . . . . . Piercing Weapon . | . . . . . . . Special Melee Weapon . | . . . . . . . Unidentified Prototypes 3 | . . . . 2 . 1 Parts Lost 15 | . . 3 6 . . 6 Power 3 | . . 1 1 . . 1 Propulsion 4 | . . 2 2 . . . Utility 5 | . . . 2 . . 3 Weapon 3 | . . . 1 . . 2 Highest Loss Streak 6 | . . 3 6 . . 2 To Critical Strikes 2 | . . 2 . . . . Average Slot Usage (%) 77 | . 85 87 86 56 55 91 Engine 8 | . 14 10 9 11 4 6 Core 1 | . . . . . 6 2 Treads 18 | . 23 32 21 . . 30 Hover 9 | . . . 7 22 22 2 Device 5 | . . 11 13 . . 10 Storage 10 | . 14 11 11 11 11 9 Processor 7 | . . . 1 11 11 9 Energy Gun 6 | . 14 9 5 . . 10 Energy Cannon 2 | . 12 9 . . . . Ballistic Gun 4 | . 1 3 16 . . 5 Naked Turns . | . . . . . . . Heaviest Build 39 | 11 28 32 29 27 25 39 Greatest Support 80 | 10 40 63 63 12 12 80 Greatest Overweight (x) 3 | 3 2 1 2 2 2 1 Average Overweight (x) . | . . . . 2 . . Largest Inventory Capacity 15 | 8 15 15 15 15 15 15 Average Capacity 12 | 6 14 15 15 15 8 10 Most Carried 15 | 6 15 15 14 12 11 15 Average Carried 10 | 4 10 14 10 10 8 9 Final Capacity 15 | 8 15 15 15 15 8 10 Final Carried 15 | 4 15 15 8 11 7 10 Class Distribution -------------------- 66% | Mutant 33% | Scavenger-Mutant Dominant Class ---------------- Mutant | -10/Materials Mutant | -9/Materials Mutant | -9/Mines Mutant | -9/Exiles Mutant | -8/Mines Scavenger-Mutant | -8/Materials Resources | -11 -10 -9 -9 -9 -8 -8 ----------- Run | Jun Mat Mat Min Exi Min Mat Matter Collected 1241 | 56 244 40 163 . 20 718 Remotely . | . . . . . . . Salvage Created 2160 | . 258 237 174 . . 1491 Parts 102 | . 16 12 . . . 74 Haulers Intercepted 5 | . 2 . . . . 3 Recyclers Shooed 1 | . . . . . . 1 Parts Field Recycled . | . . . . . . . Retrieved Matter . | . . . . . . . Parts Self-Destructed . | . . . . . . . Prevented . | . . . . . . . Kills | -11 -10 -9 -9 -9 -8 -8 ------- Run | Jun Mat Mat Min Exi Min Mat Combat Hostiles Destroyed 46 | . 5 7 13 . . 21 Guns 36 | . 2 2 13 . . 19 Cannons 7 | . 2 4 . . . 1 Classes Destroyed 9 | . 4 1 1 . . 3 Worker 1 | . . . . . . 1 Hauler 5 | . 2 . . . . 3 Recycler 1 | . . . . . . 1 Watcher 4 | . 1 . . . . 3 Swarmer 7 | . 3 4 . . . . Grunt 16 | . 2 . . . . 14 Sentry 9 | . . 3 . . . 6 Hunter 1 | . . . . . . 1 Assembled 13 | . . . 13 . . . Best Kill Streak 12 | . 3 4 12 . . 4 Combat Bots Only 12 | . 3 4 12 . . 3 Max Kills in Single Turn 2 | . 1 1 2 . . 1 Gunslinging 1 | . . . 1 . . . Exploded . | . . . . . . . Melee . | . . . . . . . Uniques/NPCs Destroyed . | . . . . . . . Combat | -11 -10 -9 -9 -9 -8 -8 -------- Run | Jun Mat Mat Min Exi Min Mat Damage Taken 3354 | . 198 497 690 . . 1969 Core 418 | . 27 75 117 . . 199 Absorbed by Shields 175 | . . 25 150 . . . Core Remaining (%) 80 | 100 89 . . . 52 . Volleys Fired 224 | . 26 21 50 . 1 126 Largest 2 | . 2 2 2 . 1 2 Hottest 110 | . 110 110 70 . 30 110 Shots Fired 423 | . 51 42 97 . 1 232 Gun 372 | . 25 28 97 . . 222 Cannon 49 | . 26 14 . . . 9 Launcher 2 | . . . . . 1 1 Special . | . . . . . . . Kinetic 178 | . . 14 82 . . 82 Thermal 167 | . 51 28 15 . . 73 Explosive 2 | . . . . . 1 1 Electromagnetic 76 | . . . . . . 76 Robot Hit Streak 17 | . 7 11 15 . . 17 Robot Miss Streak 4 | . 4 3 3 . . 4 Penetration Max . | . . . . . . . Secondary Targets 6 | . . . 5 . . 1 Max Gunslinging Chain 1 | . . . 1 . . 1 Shots Hit Robots 274 | . 27 30 65 . . 152 Core Hits 110 | . 8 10 33 . . 59 Critical Kills 1 | . . . . . . 1 Critical Parts Destroyed . | . . . . . . . Critical Strikes 9 | . 1 2 1 . . 5 Burn 7 | . 1 2 1 . . 3 Destroy 1 | . . . . . . 1 Corrupt 1 | . . . . . . 1 Melee Attacks . | . . . . . . . Impact . | . . . . . . . Slashing . | . . . . . . . Piercing . | . . . . . . . Sneak Attacks . | . . . . . . . Combat Hostiles . | . . . . . . . Follow-up Attacks . | . . . . . . . Damage Inflicted 4026 | . 405 387 574 . . 2660 Guns 3400 | . 176 196 571 . . 2457 Cannons 563 | . 229 191 . . . 143 Explosions 56 | . . . . . . 56 Melee . | . . . . . . . Ramming 7 | . . . 3 . . 4 Kinetic 1223 | . . 97 402 . . 724 Thermal 1855 | . 405 290 169 . . 991 Explosive . | . . . . . . . Electromagnetic 941 | . . . . . . 941 Impact . | . . . . . . . Slashing . | . . . . . . . Piercing . | . . . . . . . Highest Corruption 14 | . . . 14 14 14 . Average Corruption 13 | . . . 13 14 14 . Corruption Purged . | . . . . . . . Corruption Blocked . | . . . . . . . Effects 70 | . . . 6 38 26 . Message Errors 17 | . . . . 9 8 . Matter Fused 19 | . . . 1 9 9 . Heat Flow Errors 10 | . . . 2 6 2 . Energy Discharges 13 | . . . 1 6 6 . Parts Fused 1 | . . . . 1 . . Data Loss (minor) 9 | . . . 1 7 1 . Data Loss (major) 1 | . . . 1 . . . Overload Shots . | . . . . . . . Overflow Damage 38 | . . . . . . 38 Projectiles . | . . . . . . . Explosions 38 | . . . . . . 38 Melee . | . . . . . . . Knockbacks . | . . . . . . . Impact . | . . . . . . . Kinetic . | . . . . . . . Secondary . | . . . . . . . Self-Inflicted Damage 83 | . . . 1 . . 82 Shots 2 | . . . . . . 2 Rammed 4 | . . . 3 . . 1 Targets Rammed 4 | . . . 3 . . 1 Kicked . | . . . . . . . Crushed . | . . . . . . . Highest Temperature 341 | . 302 253 198 256 228 341 Average Temperature 110 | . 117 87 83 119 95 124 Received Heat Transfer 1072 | . 12 118 258 . . 684 Effects 1 | . . . . . . 1 Shutdowns 1 | . . . . . . 1 Siege Activations . | . . . . . . . Robots Corrupted . | . . . . . . . Combat Hostiles . | . . . . . . . Parts Fried 4 | . . . . . . 4 Impact Corruptions . | . . . . . . . Robots Melted 4 | . 2 1 . . . 1 Combat Hostiles 3 | . 1 1 . . . 1 Parts Melted 15 | . 1 7 . . . 7 Heat Transferred 4935 | . 1073 851 556 . . 2455 Parts Sabotaged . | . . . . . . . Parts Stolen . | . . . . . . . Parts Stripped . | . . . . . . . Power Chain Reactions 2 | . . . . . . 2 Missiles Intercepted . | . . . . . . . Alert | -11 -10 -9 -9 -9 -8 -8 ------- Run | Jun Mat Mat Min Exi Min Mat Peak Influence 392 | . 154 200 70 . 10 392 Initial 70 | . . . 70 . . 3 Average 117 | . 78 98 46 . . 202 Maximum Alert Level 1 | . . 1 . . . 1 Low Security (%) 76 | 100 100 99 100 . 100 49 Level 1 23 | . . . . . . 50 Level 2 . | . . . . . . . Level 3 . | . . . . . . . Level 4 . | . . . . . . . Level 5 . | . . . . . . . High Security . | . . . . . . . Max Security . | . . . . . . . Squads Dispatched 7 | . . . . . . 7 Investigation 2 | . . . . . . 2 Extermination . | . . . . . . . Reinforcement 4 | . . . . . . 4 Assault . | . . . . . . . Garrison 1 | . . . . . . 1 Intercept . | . . . . . . . Searches Triggered . | . . . . . . . Construction Impeded 1 | . . . . . . 1 Haulers Reinforced . | . . . . . . . Active Scanning Responses . | . . . . . . . Cargo Convoy Interrupts . | . . . . . . . Stealth | -11 -10 -9 -9 -9 -8 -8 --------- Run | Jun Mat Mat Min Exi Min Mat Distress Signals 7 | . . 2 . . . 5 Communications Jammed . | . . . . . . . Distress Signals . | . . . . . . . Times Spotted 94 | . 7 14 23 . 1 49 Peak Tracking Total 18 | . 4 5 18 . 3 5 Tactical Retreats 9 | . . 3 2 . . 4 Traps | -11 -10 -9 -9 -9 -8 -8 ------- Run | Jun Mat Mat Min Exi Min Mat Traps Triggered 2 | . . . . . . 2 Indirectly . | . . . . . . . Trap Hack Attempts . | . . . . . . . Triggered . | . . . . . . . Disarmed . | . . . . . . . Reprogrammed . | . . . . . . . Reused . | . . . . . . . Traps Extracted . | . . . . . . . Installed . | . . . . . . . Triggered . | . . . . . . . Machines | -11 -10 -9 -9 -9 -8 -8 ---------- Run | Jun Mat Mat Min Exi Min Mat Machines Disabled 3 | . . . . . . 3 Max in Single Turn 1 | . . . . . . 1 Machines Repaired . | . . . . . . . Machines Sabotaged . | . . . . . . . Overloaded Fab Kills . | . . . . . . . Hacking | -11 -10 -9 -9 -9 -8 -8 --------- Run | Jun Mat Mat Min Exi Min Mat Machines Accessed 7 | . 2 1 . 1 . 3 Terminals 4 | . 2 1 . . . 1 Fabricators . | . . . . . . . Repair Stations . | . . . . . . . Recycling Units . | . . . . . . . Scanalyzers 2 | . . . . . . 2 Garrison Access . | . . . . . . . Total Hacks 18 | . 5 2 . 1 . 10 Successful 9 | . 1 . . 1 . 7 Failed 9 | . 4 2 . . . 3 Catastrophic 1 | . . 1 . . . . Database Lockouts . | . . . . . . . Manual 9 | . 5 2 . 1 . 1 Terminals 8 | . 5 2 . . . 1 Fabricators . | . . . . . . . Repair Stations . | . . . . . . . Recycling Units . | . . . . . . . Scanalyzers 9 | . . . . . . 9 Garrison Access . | . . . . . . . Terminal Hacks 2 | . 1 . . 1 . . Record 1 | . . . . 1 . . Branch Access Points 1 | . 1 . . . . . Fabricator Hacks . | . . . . . . . Repair Station Hacks . | . . . . . . . Recycling Unit Hacks . | . . . . . . . Scanalyzer 7 | . . . . . . 7 Insert Component 4 | . . . . . . 4 Analyze 3 | . . . . . . 3 Garrison Access Hacks . | . . . . . . . Unauthorized Hacks . | . . . . . . . Terminals . | . . . . . . . Fabricators . | . . . . . . . Repair Stations . | . . . . . . . Recycling Units . | . . . . . . . Scanalyzers . | . . . . . . . Garrison Access . | . . . . . . . Data Cores Recovered . | . . . . . . . Used . | . . . . . . . Hacking Detections 5 | . 1 1 . . . 3 Full Trace Events 2 | . 1 . . . . 1 Feedback Events . | . . . . . . . Feedback Blocked . | . . . . . . . Robot Schematics Acquired . | . . . . . . . Robots Built . | . . . . . . . Authchips . | . . . . . . . Time . | . . . . . . . Total Robot Build Rating . | . . . . . . . Part Schematics Acquired 2 | . . . . . . 2 Parts Built . | . . . . . . . Authchips . | . . . . . . . Time . | . . . . . . . Total Part Build Rating . | . . . . . . . Parts Repaired . | . . . . . . . Time . | . . . . . . . Parts Recycled . | . . . . . . . Recycled Matter . | . . . . . . . Retrieved Matter . | . . . . . . . Retrieved Components . | . . . . . . . Parts Scanalyzed 3 | . . . . . . 3 Part Schematics Acquired 2 | . . . . . . 2 Parts Damaged . | . . . . . . . Bothacking | -11 -10 -9 -9 -9 -8 -8 ------------ Run | Jun Mat Mat Min Exi Min Mat Used RIF Installer . | . . . . . . . Robots Hacked . | . . . . . . . Non-combat . | . . . . . . . Combat . | . . . . . . . Robot Hacks Applied . | . . . . . . . Relay Couplers Released . | . . . . . . . Fabnet Peak Effective % . | . . . . . . . Robots Rewired . | . . . . . . . Allies Hacked . | . . . . . . . Hacks Repelled . | . . . . . . . Allies | -11 -10 -9 -9 -9 -8 -8 -------- Run | Jun Mat Mat Min Exi Min Mat Total Allies . | . . . . . . . Largest Group . | . . . . . . . Highest-Rated Group . | . . . . . . . Highest-Rated Ally . | . . . . . . . Total Orders . | . . . . . . . Ally Attacks . | . . . . . . . Total Damage . | . . . . . . . Kills . | . . . . . . . Allies Corrupted . | . . . . . . . Allies Melted . | . . . . . . . Intel | -11 -10 -9 -9 -9 -8 -8 ------- Run | Jun Mat Mat Min Exi Min Mat Robot Analysis Total . | . . . . . . . Derelict Logs Recovered 1 | . . . 1 . . . Drone Launches . | . . . . . . . Drone Recoveries . | . . . . . . . Exploration | -11 -10 -9 -9 -9 -8 -8 ------------- Run | Jun Mat Mat Min Exi Min Mat Turns Passed 4555 | 58 431 355 366 942 739 1664 Spaces Moved 2735 | 53 241 173 130 531 934 673 Core 38 | 38 . . . . . . Treads 969 | . 147 173 66 . . 583 Legs . | . . . . . . . Wheels 109 | 15 94 . . . . . Hover 1619 | . . . 64 531 934 90 Flight . | . . . . . . . Fastest Speed 48 | 50 95 160 160 176 56 48 Average Speed 125 | 80 139 160 167 176 62 156 Slowest Speed 240 | 200 160 240 176 176 176 170 Overloaded Moves . | . . . . . . . Propulsion Burnouts . | . . . . . . . Robots Hopped . | . . . . . . . Cave-ins Triggered . | . . . . . . . Exploration Rate (%) 44 | 3 38 21 32 79 90 48 Regions Visited 6 Branch Regions 3 Pre-discovered Areas . | . . . . . . . Known Exits Taken 3 | . . . 1 1 1 . Unknown Exits Taken 3 | 1 1 1 . . . . Scrap Searched 1 | . . . . . 1 . Spaces Dug 25 | . . . . . 12 13 Terrain Destroyed 31 | . . . . . 12 19 Melee . | . . . . . . . Projectile . | . . . . . . . AOE 31 | . . . . . 12 19 Terrain Rammed . | . . . . . . . Walls Destroyed . | . . . . . . . Machines Disabled . | . . . . . . . Actions | -11 -10 -9 -9 -9 -8 -8 --------- Run | Jun Mat Mat Min Exi Min Mat Total 3461 | 65 286 212 195 541 1091 1071 Wait 338 | . 1 6 2 . 148 181 Move 2729 | 52 240 172 129 530 933 673 Hop . | . . . . . . . Pick Up 54 | 6 13 3 . 3 1 28 Fast Attach 13 | 4 . 1 . . 1 7 Attach 25 | 2 1 2 8 2 1 9 Detach 7 | . 1 . 1 3 . 2 Swap 31 | 1 2 4 2 . 1 21 Drop 35 | . 2 3 . 2 5 23 Fire 224 | . 26 21 50 . 1 126 Melee . | . . . . . . . Ram 1 | . . . 1 . . . Kick . | . . . . . . . Crush 3 | . . . 2 . . 1 Escape Stasis . | . . . . . . . Rewire 1 | . . . . 1 . . Trap . | . . . . . . . Miscellaneous . | . . . . . . . Route ------- -11/Junkyard -10/Materials (discovered 3 exits: *Mat / *Min x2) -9/Materials (discovered 2 exits: [*Min x2]) -9/Mines -9/Exiles (discovered 2 exits: *Min x2) -8/Mines -8/Materials (discovered 2 exits: *Fac x2) History --------- Turn | Location | Event 8 | -11/Junkyard | Discovered new exit (range 15) 59 | -11/Junkyard | Entered Materials 248 | -10/Materials | Identified exit to Mines 301 | -10/Materials | Build established: Mutant 479 | -10/Materials | Discovered new exit (range 8) 490 | -10/Materials | Entered another Materials area 490 | -9/Materials | Evolved 2 slots: Propulsion x1, Utility x1 712 | -9/Materials | Discovered new exit (range 16) 808 | -9/Materials | Discovered new exit (range 14) 845 | -9/Materials | Entered Mines 853 | -9/Mines | Met a Derelict bent on vengeance 876 | -9/Mines | Lost 3 parts (1p2n) 912 | -9/Mines | Assembled infested the area 917 | -9/Mines | Assisted by a Guerilla fighting off Assembled 956 | -9/Mines | Learned 4 Materials zone layouts 1079 | -9/Mines | System corruption reached 10% 1090 | -9/Mines | Destroyed 12 combat bots 1121 | -9/Mines | Lost 6 parts (1p2n2u1w) 1200 | -9/Mines | Deemed a non-threat by the Exiles lab entrance 1202 | -9/Mines | Discovered new exit (range 5) 1208 | -9/Mines | Identified exit to Exiles 1211 | -9/Mines | Entered Exiles 1234 | -9/Exiles | Discovered new exit (range 15) 1264 | -9/Exiles | Met 8R-AWN 1291 | -9/Exiles | Met EX-HEX 1388 | -9/Exiles | Met EX-DEC 1450 | -9/Exiles | Visited The Gauntlet 1631 | -9/Exiles | Discovered new exit (range 14) 1662 | -9/Exiles | Identified exit to Mines 1773 | -9/Exiles | Met EX-BIN 1812 | -9/Exiles | Aligned with FarCom system 1814 | -9/Exiles | Given EX-Vault access code 1866 | -9/Exiles | Opened EX-Vault 1879 | -9/Exiles | Found Prototype Device 1880 | -9/Exiles | Identified Cloak of Protection 1888 | -9/Exiles | Found Prototype Energy Cannon 1889 | -9/Exiles | Identified Firepult 1961 | -9/Exiles | Warned to stay clear of 0b10 Research branches 2153 | -9/Exiles | Left Exiles lab with Cloak of Protection 2153 | -9/Exiles | Entered Mines 2888 | -8/Mines | Discovered new exit (range 8) 2892 | -8/Mines | Identified exit to Materials 2892 | -8/Mines | Entered Materials 2892 | -8/Materials | Evolved 2 slots: Propulsion x1, Utility x1 2893 | -8/Materials | Identified exit to Factory 3344 | -8/Materials | Build established: Scavenger-Mutant 3771 | -8/Materials | Discovered exit to Factory (range 11) 4467 | -8/Materials | Garrison activated, responded to threat 4556 | -8/Materials | Self-destructed Last Messages --------------- 04467_ Y-45 Defender calls for garrison reinforcements. 04467_ ALERT: Activating Garrison Access M001. 04471_ Y-45 Defender destroyed. 04479_ Imp. Sensor Array melted. 04479_ W-25 Informer destroyed. 04480_ K-01 Serf collects debris. 04482_ Acquired 16 matter. 04484_ K-01 Serf collects debris. 04494_ R-06 Scavenger collects Heat Sink. 04497_ K-01 Serf collects debris. 04509_ G-47 Trooper heat damages Aluminum Leg. 04520_ G-47 Trooper heat damages Lgt. Nuclear Core. 04520_ G-47 Trooper destroyed. 04521_ Power failure, Imp. Deuterium Engine shutdown. 04524_ ALERT: Suspicious intruders detected, dispatching Specialist reinforcements to area. 04531_ Acquired Lgt. Armor Plating. 04534_ Dropped Lgt. Treads. 04538_ Hvy. Laser destroyed. 04554_ U-05 Engineer builds a Door. Map ----- +----------------------------------------------------+ | | | | | | | | | | | | | | | | | | | | | ?????????????????????????????????????????????????? | | ?????????????????????????????????????????????????? | | ?????????????????????????????????????##########??? | | ?????????????????????????????????????# #??? | | ?????????????????????????????????????# #??? | | ?????????????????????????????????????# #??? | | ???????????????????????????########??# #??? | | ???????????????????????????? #??# #??? | | ???????????????????????????? """" #??# #??? | | ?????????????Y???????????????"""" ???# #??? | | ?????????????????????????????"""" ???# #??? | | ?????????????????????????????? ????# #??? | | ???????????????###+##????????? ????#####+####??? | | ?????????####### ##########+######## #???? | | ???????? x% * = ! #???? | | ???????? x ! @ #???? | | ???????? == um u #???? | | ??????????###### ###+#### ##### #???? | | ???????????????#####?? ??# #???## ##???? | | ?????????????????????# ??#! !#????# #????? | | ?????????????????????# ?##!!!!##????# #????? | | ?????????????????????# ??######?????# #????? | | ?????????????????????# ????????????# #????? | | ?????????????????????# ????????????# #????? | | ?????????????????????###+####???????????# ###### | | ????????????????????????????????????????# = | | ????????????????????????????????????????# !! | | ???????????????????????? ???????????????# """% "" | | ????????????????????? H??????#######??# """ "" | | ?????????????????????? ??????# ??# " "" | | ?????????????????????? ??????# ""?# | | ??????????????????????# g ?????# "" # | | ??????????????????????#g g?????# T" # ! | | ??????????????????????# ?????# "" + | | ??????????????????????+ ?????# "" # | | ??????????????????????# ?????? # ###### | | ??????????????????????# ??????? ?# #?# | | ?????????????????????## ##???? ??# #?# "" | | ?????????????????????# ########/##### #?# "" | | ?????????????????????# #?# "" | +----------------------------------------------------+ Best States ------------- Heat Dissipation 77 Energy Generation 16 Energy Capacity 290 Matter Stores 300 Matter Capacity 300 Sight Range 16 Terrain Scan Density 10 ECM Strength 1 Armor Coverage 150 Evasion (%) 55 Targeting Accuracy 6 Recoil Reduction 4 Item Schematics ----------------- Aerolev Unit | -8/Materials | Scanalyzed Adv. Weight Redist. System | -8/Materials | Scanalyzed Robot Schematics ------------------ None Fabricated ------------ Nothing Alien Tech Used ----------------- None Achievements -------------- None Challenges ------------ None Game ------ Seed CloakCoreRedirector Manual? 0 Play Time 00:35:02 Cumulative 65.9 hours Start 2023.04.05 @ 17:31:17 End 2023.04.06 @ 15:38:28 Sessions 3 Manual Loads 0 Difficulty Rogue Special Mode None Game No. 76 Rogue 76 Adventurer 0 Explorer 0 Win Type - Total 0 Types 0/0/0/0/0/0/0/0/0 Lore% 38 Gallery% 49 Achievement% 42 Wizard Run 0 Options --------- ASCII 0 Keyboard 0 Movement Arrows Keybinds 0 Fullscreen 2 Font 18/SmallcapsGlow Map View 76x50 Tactical HUD 1 Map Filters NONE Filters NONE Steam 1 RUN: a0b5c1a1-8448-439a-bb5c-156388388f7e